[Event "*** Titled Tuesday Blitz"]
[Site "Chess.com"]
[Date "2021.02.02"]
[Round "9"]
[White "Nikolakis2014"]
[Black "ErikBlomqvist"]
[Result "1-0"]
[WhiteElo "2643"]
[BlackElo "2499"]
[TimeControl "180+1"]
[EndTime "11:46:42 PST"]
[Termination "Nikolakis2014 won by checkmate"]

1. Nf3 {[%clk 0:03:00.9]} 1... c5 {[%clk 0:02:57.2]} 2. c4 {[%clk 0:03:00.3]}
2... Nc6 {[%clk 0:02:57.2]} 3. Nc3 {[%clk 0:03:00.4]} 3... g6 {[%clk 0:02:53.8]}
4. e3 {[%clk 0:03:00.5]} 4... Bg7 {[%clk 0:02:52.3]} 5. d4 {[%clk 0:03:00.1]}
5... d6 {[%clk 0:02:52.9]} 6. d5 {[%clk 0:02:58.9]} 6... Na5 {[%clk 0:02:53]} 7.
Bd3 {[%clk 0:02:56.6]} 7... Nf6 {[%clk 0:02:50.6]} 8. O-O {[%clk 0:02:56.3]}
8... O-O {[%clk 0:02:50.6]} 9. h3 {[%clk 0:02:55.9]} 9... e5 {[%clk 0:02:40.6]}
10. e4 {[%clk 0:02:51.4]} 10... Nh5 {[%clk 0:02:36.2]} 11. Re1 {[%clk
0:02:34.9]} 11... b6 {[%clk 0:02:34.1]} 12. Bd2 {[%clk 0:02:33]} 12... Bd7
{[%clk 0:02:29.4]} 13. a3 {[%clk 0:02:28.5]} 13... Nb7 {[%clk 0:02:27.6]} 14.
Kh2 {[%clk 0:02:20]} 14... Qe7 {[%clk 0:01:50.4]} 15. g3 {[%clk 0:02:16.7]}
15... Rae8 {[%clk 0:01:32.4]} 16. Nh4 {[%clk 0:02:15.7]} 16... Qd8 {[%clk
0:01:26.6]} 17. Nf5 {[%clk 0:02:05.5]} 17... Nf6 {[%clk 0:01:06.7]} 18. Nxg7
{[%clk 0:02:00]} 18... Kxg7 {[%clk 0:01:07.6]} 19. Qf3 {[%clk 0:01:36.5]} 19...
h6 {[%clk 0:01:01.3]} 20. Qg2 {[%clk 0:01:33.6]} 20... Nh5 {[%clk 0:00:54.7]}
21. Be2 {[%clk 0:01:08.4]} 21... Nf6 {[%clk 0:00:54.5]} 22. Rf1 {[%clk
0:01:06.4]} 22... Nh7 {[%clk 0:00:47.5]} 23. f4 {[%clk 0:00:58.5]} 23... f5
{[%clk 0:00:47.1]} 24. Rae1 {[%clk 0:00:53.7]} 24... Nf6 {[%clk 0:00:37.9]} 25.
exf5 {[%clk 0:00:37.3]} 25... gxf5 {[%clk 0:00:37.8]} 26. g4 {[%clk 0:00:37.5]}
26... fxg4 {[%clk 0:00:35.3]} 27. hxg4 {[%clk 0:00:37.1]} 27... exf4 {[%clk
0:00:33.3]} 28. Bxf4 {[%clk 0:00:36]} 28... Nh7 {[%clk 0:00:16.8]} 29. Qg3
{[%clk 0:00:32.8]} 29... Ng5 {[%clk 0:00:14.8]} 30. Bd3 {[%clk 0:00:31.7]} 30...
Rxe1 {[%clk 0:00:13]} 31. Rxe1 {[%clk 0:00:31.2]} 31... Qf6 {[%clk 0:00:13.3]}
32. Rf1 {[%clk 0:00:19]} 32... Qd4 {[%clk 0:00:12.3]} 33. Bxg5 {[%clk
0:00:17.8]} 33... hxg5 {[%clk 0:00:09.3]} 34. Rxf8 {[%clk 0:00:16.8]} 34... Kxf8
{[%clk 0:00:10.2]} 35. Ne4 {[%clk 0:00:17]} 35... Qxb2+ {[%clk 0:00:08.6]} 36.
Kh3 {[%clk 0:00:17.3]} 36... Qh8+ {[%clk 0:00:06.5]} 37. Kg2 {[%clk 0:00:17.6]}
37... Qb2+ {[%clk 0:00:06.5]} 38. Kh3 {[%clk 0:00:17.8]} 38... Ke7 {[%clk
0:00:06.4]} 39. Nxg5 {[%clk 0:00:16.3]} 39... Qxa3 {[%clk 0:00:05.3]} 40. Ne4
{[%clk 0:00:15]} 40... Qc1 {[%clk 0:00:04.3]} 41. Qh4+ {[%clk 0:00:15]} 41...
Kf8 {[%clk 0:00:03]} 42. Qh8+ {[%clk 0:00:15]} 42... Kf7 {[%clk 0:00:03]} 43.
Qf6+ {[%clk 0:00:15.1]} 43... Kg8 {[%clk 0:00:02.7]} 44. Qg6+ {[%clk 0:00:14.7]}
44... Kf8 {[%clk 0:00:02.9]} 45. Qf6+ {[%clk 0:00:14.7]} 45... Kg8 {[%clk
0:00:03.1]} 46. Ng3 {[%clk 0:00:13.7]} 46... Qe3 {[%clk 0:00:01.2]} 47. Qg6+
{[%clk 0:00:12]} 47... Kf8 {[%clk 0:00:01.6]} 48. Qf6+ {[%clk 0:00:12.2]} 48...
Ke8 {[%clk 0:00:02.1]} 49. Bg6# {[%clk 0:00:12.4]} 1-0

[Event "*** Titled Tuesday Blitz"]
[Site "Chess.com"]
[Date "2021.02.02"]
[Round "9"]
[White "reniite"]
[Black "Grineva_Marianna"]
[Result "0-1"]
[WhiteElo "1990"]
[BlackElo "2228"]
[TimeControl "180+1"]
[EndTime "11:46:42 PST"]
[Termination "Grineva_Marianna won by resignation"]

1. e4 {[%clk 0:02:49]} 1... c5 {[%clk 0:02:59.2]} 2. Nf3 {[%clk 0:02:48.8]} 2...
Nc6 {[%clk 0:02:58.3]} 3. d4 {[%clk 0:02:49.3]} 3... cxd4 {[%clk 0:02:58]} 4.
Nxd4 {[%clk 0:02:50]} 4... Nf6 {[%clk 0:02:58.6]} 5. Nc3 {[%clk 0:02:50.5]} 5...
g6 {[%clk 0:02:59.1]} 6. g3 {[%clk 0:02:47.6]} 6... Bg7 {[%clk 0:02:56.3]} 7.
Nde2 {[%clk 0:02:43.2]} 7... O-O {[%clk 0:02:53.4]} 8. Bg2 {[%clk 0:02:43.7]}
8... d6 {[%clk 0:02:53.8]} 9. O-O {[%clk 0:02:39.2]} 9... Bd7 {[%clk 0:02:49.6]}
10. h3 {[%clk 0:02:39.5]} 10... Rc8 {[%clk 0:02:49.5]} 11. Kh2 {[%clk
0:02:40.2]} 11... Ne5 {[%clk 0:02:38]} 12. a4 {[%clk 0:02:40.7]} 12... a6 {[%clk
0:02:36.7]} 13. Ra2 {[%clk 0:02:13.4]} 13... b5 {[%clk 0:02:09.8]} 14. axb5
{[%clk 0:02:02.7]} 14... axb5 {[%clk 0:02:10.7]} 15. Nd4 {[%clk 0:01:53.1]}
15... b4 {[%clk 0:02:09.9]} 16. Nd5 {[%clk 0:01:53.7]} 16... Nxd5 {[%clk
0:02:04.9]} 17. exd5 {[%clk 0:01:54.6]} 17... Rc4 {[%clk 0:01:46.3]} 18. Be3
{[%clk 0:01:43.5]} 18... Qc8 {[%clk 0:01:39.3]} 19. Qd2 {[%clk 0:01:31.3]} 19...
Bf5 {[%clk 0:01:10]} 20. b3 {[%clk 0:01:25.4]} 20... Rc3 {[%clk 0:01:08.3]} 21.
f4 {[%clk 0:01:14.2]} 21... Nd7 {[%clk 0:00:57.9]} 22. Nc6 {[%clk 0:01:05.9]}
22... Re8 {[%clk 0:00:42.7]} 23. g4 {[%clk 0:00:57.3]} 23... Bxg4 {[%clk
0:00:33.2]} 24. hxg4 {[%clk 0:00:52.8]} 24... Nf6 {[%clk 0:00:33.7]} 25. Bd4
{[%clk 0:00:31.1]} 25... Nxg4+ {[%clk 0:00:31.6]} 26. Kh1 {[%clk 0:00:30.9]}
26... Bxd4 {[%clk 0:00:28]} 27. Qxd4 {[%clk 0:00:30.2]} 27... Nf6 {[%clk
0:00:27]} 28. Rfa1 {[%clk 0:00:28]} 28... Qg4 {[%clk 0:00:20.6]} 29. Nxe7+
{[%clk 0:00:23.6]} 29... Rxe7 {[%clk 0:00:19.3]} 30. Qxf6 {[%clk 0:00:23]} 30...
Rh3+ {[%clk 0:00:17.7]} 31. Kg1 {[%clk 0:00:20.9]} 31... Re8 {[%clk 0:00:14.6]}
32. Ra8 {[%clk 0:00:18.3]} 32... Re3 {[%clk 0:00:14.9]} 33. Rxe8+ {[%clk
0:00:18.1]} 33... Rxe8 {[%clk 0:00:15.8]} 34. Rf1 {[%clk 0:00:17.4]} 34... Qe2
{[%clk 0:00:15.5]} 35. Rf2 {[%clk 0:00:17.6]} 35... Qe1+ {[%clk 0:00:15.7]} 36.
Rf1 {[%clk 0:00:17.8]} 36... Qe3+ {[%clk 0:00:16.2]} 37. Kh2 {[%clk 0:00:15.4]}
37... Qe2 {[%clk 0:00:15.7]} 38. Qh4 {[%clk 0:00:14.2]} 38... Qxc2 {[%clk
0:00:14.2]} 39. Qf2 {[%clk 0:00:14.1]} 39... Qxb3 {[%clk 0:00:13.9]} 40. Qd4
{[%clk 0:00:14.2]} 40... Qc3 {[%clk 0:00:13.2]} 41. Qxc3 {[%clk 0:00:13.9]}
41... bxc3 {[%clk 0:00:14.1]} 42. Rc1 {[%clk 0:00:13.5]} 42... Rc8 {[%clk
0:00:14.5]} 43. Rxc3 {[%clk 0:00:14.1]} 43... Rxc3 {[%clk 0:00:13.6]} 44. Bf1
{[%clk 0:00:14.3]} 44... Rc2+ {[%clk 0:00:13.9]} 45. Kg3 {[%clk 0:00:14.7]}
45... Rd2 {[%clk 0:00:14.5]} 46. Bg2 {[%clk 0:00:14.7]} 46... Rd4 {[%clk
0:00:14.6]} 47. Bf3 {[%clk 0:00:15.1]} 47... Rd3 {[%clk 0:00:14.8]} 48. Kg4
{[%clk 0:00:15.2]} 48... Kg7 {[%clk 0:00:15.2]} 49. Kg3 {[%clk 0:00:15.5]} 49...
h5 {[%clk 0:00:15.4]} 50. Kf2 {[%clk 0:00:15.4]} 50... Kf6 {[%clk 0:00:15.6]}
51. Be4 {[%clk 0:00:16.3]} 51... Ra3 {[%clk 0:00:15.4]} 52. Bg2 {[%clk
0:00:17.2]} 52... h4 {[%clk 0:00:15.5]} 53. Bf1 {[%clk 0:00:17.8]} 53... Ra4
{[%clk 0:00:15.4]} 54. Kg2 {[%clk 0:00:18.3]} 54... Rxf4 {[%clk 0:00:15.7]} 0-1

[Event "*** Titled Tuesday Blitz"]
[Site "Chess.com"]
[Date "2021.02.02"]
[Round "9"]
[White "LyonBeast"]
[Black "ChessWarrior7197"]
[Result "1-0"]
[WhiteElo "3113"]
[BlackElo "2932"]
[TimeControl "180+1"]
[EndTime "11:46:43 PST"]
[Termination "LyonBeast won by resignation"]

1. d4 {[%clk 0:03:00.9]} 1... d5 {[%clk 0:02:59.5]} 2. Bf4 {[%clk 0:03:00.6]}
2... c5 {[%clk 0:02:59.6]} 3. e3 {[%clk 0:02:54.5]} 3... Nc6 {[%clk 0:02:59.7]}
4. c3 {[%clk 0:02:54.3]} 4... Nf6 {[%clk 0:02:58.4]} 5. Nd2 {[%clk 0:02:54]}
5... Qb6 {[%clk 0:02:45.5]} 6. Qb3 {[%clk 0:02:53.6]} 6... c4 {[%clk 0:02:34.3]}
7. Qc2 {[%clk 0:02:53.2]} 7... g6 {[%clk 0:02:34.7]} 8. e4 {[%clk 0:02:25.7]}
8... Nxe4 {[%clk 0:02:29.5]} 9. Nxe4 {[%clk 0:02:24.6]} 9... dxe4 {[%clk
0:02:22.6]} 10. Bxc4 {[%clk 0:02:24.4]} 10... Bg7 {[%clk 0:02:18.3]} 11. Ne2
{[%clk 0:02:21.6]} 11... O-O {[%clk 0:02:17.5]} 12. O-O {[%clk 0:02:16.2]} 12...
e5 {[%clk 0:01:53.3]} 13. dxe5 {[%clk 0:02:15]} 13... Nxe5 {[%clk 0:01:53]} 14.
Bxe5 {[%clk 0:02:13.8]} 14... Bxe5 {[%clk 0:01:53.9]} 15. Qxe4 {[%clk
0:02:13.3]} 15... Re8 {[%clk 0:01:51.3]} 16. Qf3 {[%clk 0:02:08.6]} 16... Bf5
{[%clk 0:01:44.2]} 17. Bb3 {[%clk 0:02:04.9]} 17... a5 {[%clk 0:01:33.3]} 18.
Ng3 {[%clk 0:01:57.6]} 18... Bxg3 {[%clk 0:01:15.3]} 19. hxg3 {[%clk 0:01:58.5]}
19... h5 {[%clk 0:01:15.5]} 20. Rae1 {[%clk 0:01:19.7]} 20... Rxe1 {[%clk
0:01:09.9]} 21. Rxe1 {[%clk 0:01:20.6]} 21... a4 {[%clk 0:01:10.4]} 22. Bd5
{[%clk 0:01:20.8]} 22... Qxb2 {[%clk 0:01:00.8]} 23. Re7 {[%clk 0:01:21.2]}
23... Rf8 {[%clk 0:00:49.9]} 24. Rxb7 {[%clk 0:01:14.8]} 24... Qd2 {[%clk
0:00:49.9]} 25. Kh2 {[%clk 0:01:05.1]} 25... a3 {[%clk 0:00:48.5]} 26. c4 {[%clk
0:01:03.8]} 26... Qd4 {[%clk 0:00:20.3]} 27. Qf4 {[%clk 0:00:44.7]} 27... Qxf4
{[%clk 0:00:20.3]} 28. gxf4 {[%clk 0:00:45.6]} 28... Be6 {[%clk 0:00:21.2]} 29.
Bxe6 {[%clk 0:00:35.1]} 29... fxe6 {[%clk 0:00:22.1]} 30. c5 {[%clk 0:00:35.7]}
30... Rc8 {[%clk 0:00:17.8]} 31. Rb5 {[%clk 0:00:34.8]} 31... Kf7 {[%clk
0:00:17.8]} 32. Kg3 {[%clk 0:00:35.2]} 32... Ke7 {[%clk 0:00:17.3]} 33. Ra5
{[%clk 0:00:27.2]} 33... Kd7 {[%clk 0:00:13.4]} 34. Kh4 {[%clk 0:00:24.8]} 34...
Kc6 {[%clk 0:00:13.4]} 35. Rxa3 {[%clk 0:00:23.8]} 35... Rf8 {[%clk 0:00:12.3]}
36. g3 {[%clk 0:00:23.7]} 36... Rf5 {[%clk 0:00:09.6]} 37. Re3 {[%clk
0:00:22.9]} 37... Kd7 {[%clk 0:00:10.5]} 38. Re5 {[%clk 0:00:22.7]} 38... Rf8
{[%clk 0:00:08.5]} 39. Kg5 {[%clk 0:00:22.6]} 39... Ke7 {[%clk 0:00:08.1]} 40.
Kxg6 {[%clk 0:00:19.8]} 40... h4 {[%clk 0:00:08.2]} 41. gxh4 {[%clk 0:00:15.4]}
41... Rxf4 {[%clk 0:00:08.4]} 42. h5 {[%clk 0:00:15.7]} 42... Rf3 {[%clk
0:00:08.9]} 43. h6 {[%clk 0:00:15.7]} 43... Rf6+ {[%clk 0:00:03.6]} 44. Kg5
{[%clk 0:00:13.3]} 44... Rxf2 {[%clk 0:00:03.4]} 45. Re4 {[%clk 0:00:13.4]}
45... Rxa2 {[%clk 0:00:02.3]} 46. h7 {[%clk 0:00:13.1]} 46... Ra8 {[%clk
0:00:02.9]} 47. Kg6 {[%clk 0:00:12.4]} 47... Rh8 {[%clk 0:00:03.4]} 48. Kg7
{[%clk 0:00:12.8]} 1-0

[Event "*** Titled Tuesday Blitz"]
[Site "Chess.com"]
[Date "2021.02.02"]
[Round "9"]
[White "remi04"]
[Black "Sippp"]
[Result "0-1"]
[WhiteElo "2617"]
[BlackElo "2781"]
[TimeControl "180+1"]
[EndTime "11:46:43 PST"]
[Termination "Sippp won by resignation"]

1. e4 {[%clk 0:03:00.9]} 1... c5 {[%clk 0:02:59]} 2. Nf3 {[%clk 0:03:01]} 2...
g6 {[%clk 0:02:58.3]} 3. d4 {[%clk 0:03:01.6]} 3... cxd4 {[%clk 0:02:57.9]} 4.
Nxd4 {[%clk 0:03:02.5]} 4... Nc6 {[%clk 0:02:57.7]} 5. c4 {[%clk 0:03:02.4]}
5... Nf6 {[%clk 0:02:44.5]} 6. Nc3 {[%clk 0:03:01.6]} 6... d6 {[%clk 0:02:43.9]}
7. Be3 {[%clk 0:03:01.3]} 7... Ng4 {[%clk 0:02:22.5]} 8. Nxc6 {[%clk 0:02:45.6]}
8... bxc6 {[%clk 0:02:00.1]} 9. Bg5 {[%clk 0:02:43]} 9... Qb6 {[%clk 0:01:46.4]}
10. Qd2 {[%clk 0:02:41.5]} 10... Bg7 {[%clk 0:01:42.7]} 11. h3 {[%clk
0:02:35.5]} 11... Nf6 {[%clk 0:01:41.7]} 12. Be3 {[%clk 0:02:34.8]} 12... Qa5
{[%clk 0:01:37.3]} 13. Be2 {[%clk 0:02:30.4]} 13... O-O {[%clk 0:01:35.5]} 14.
O-O {[%clk 0:02:30.5]} 14... Rb8 {[%clk 0:01:25.3]} 15. Rab1 {[%clk 0:02:25]}
15... Nd7 {[%clk 0:01:13.6]} 16. Kh1 {[%clk 0:02:03.9]} 16... Ba6 {[%clk
0:01:10.2]} 17. Nd5 {[%clk 0:01:56.4]} 17... Qd8 {[%clk 0:01:00.8]} 18. Nb4
{[%clk 0:01:55]} 18... Bb7 {[%clk 0:00:59.4]} 19. Bxa7 {[%clk 0:01:46]} 19...
Ra8 {[%clk 0:00:58.7]} 20. Be3 {[%clk 0:01:46.5]} 20... c5 {[%clk 0:00:57.4]}
21. Nd5 {[%clk 0:01:47]} 21... Rxa2 {[%clk 0:00:55.7]} 22. Qc2 {[%clk 0:01:20]}
22... Bxd5 {[%clk 0:00:52.6]} 23. cxd5 {[%clk 0:01:05.1]} 23... Qb6 {[%clk
0:00:50.6]} 24. Bc1 {[%clk 0:00:55.3]} 24... Rb8 {[%clk 0:00:35.7]} 25. Bc4
{[%clk 0:00:55.1]} 25... Ra7 {[%clk 0:00:34.3]} 26. f4 {[%clk 0:00:53.3]} 26...
Qa5 {[%clk 0:00:31.4]} 27. Bd2 {[%clk 0:00:51.1]} 27... Qa4 {[%clk 0:00:28.5]}
28. b3 {[%clk 0:00:42.2]} 28... Qa2 {[%clk 0:00:27]} 29. Qd3 {[%clk 0:00:42.4]}
29... Nb6 {[%clk 0:00:24.1]} 30. Bb5 {[%clk 0:00:40.5]} 30... Nc8 {[%clk
0:00:15.6]} 31. Bc6 {[%clk 0:00:27.5]} 31... Ra3 {[%clk 0:00:13.3]} 32. e5
{[%clk 0:00:25.3]} 32... Raxb3 {[%clk 0:00:12.4]} 33. Rxb3 {[%clk 0:00:25.2]}
33... Rxb3 {[%clk 0:00:11.4]} 34. Qc4 {[%clk 0:00:24.5]} 34... Rb2 {[%clk
0:00:11.2]} 35. Qxa2 {[%clk 0:00:21.4]} 35... Rxa2 {[%clk 0:00:12.1]} 36. Be3
{[%clk 0:00:20.1]} 36... Ra3 {[%clk 0:00:11.7]} 37. Re1 {[%clk 0:00:17.3]} 37...
Nb6 {[%clk 0:00:10.7]} 38. exd6 {[%clk 0:00:14.8]} 38... exd6 {[%clk 0:00:11.6]}
39. Bf2 {[%clk 0:00:11.5]} 39... Bf6 {[%clk 0:00:11.8]} 40. Rb1 {[%clk
0:00:08.5]} 40... Nc4 {[%clk 0:00:11.1]} 41. Rb8+ {[%clk 0:00:08.2]} 41... Kg7
{[%clk 0:00:11.1]} 42. g4 {[%clk 0:00:07.9]} 42... h6 {[%clk 0:00:10.3]} 43. Kg2
{[%clk 0:00:07.7]} 43... Ra2 {[%clk 0:00:10]} 44. Kf3 {[%clk 0:00:08]} 44...
Nd2+ {[%clk 0:00:09.7]} 45. Ke3 {[%clk 0:00:06]} 45... Bd4+ {[%clk 0:00:09.7]}
46. Kd3 {[%clk 0:00:05.6]} 0-1

[Event "*** Titled Tuesday Blitz"]
[Site "Chess.com"]
[Date "2021.02.02"]
[Round "9"]
[White "wnstop"]
[Black "Natalya_Buksa"]
[Result "1/2-1/2"]
[WhiteElo "2732"]
[BlackElo "2564"]
[TimeControl "180+1"]
[EndTime "11:46:43 PST"]
[Termination "Game drawn by repetition"]

1. e4 {[%clk 0:02:56.4]} 1... c5 {[%clk 0:02:55.9]} 2. Nf3 {[%clk 0:02:53.2]}
2... Nc6 {[%clk 0:02:56]} 3. Nc3 {[%clk 0:02:52.7]} 3... e5 {[%clk 0:02:55.5]}
4. Bc4 {[%clk 0:02:52.4]} 4... Be7 {[%clk 0:02:55.9]} 5. d3 {[%clk 0:02:51.8]}
5... d6 {[%clk 0:02:56.4]} 6. O-O {[%clk 0:02:51.8]} 6... Nf6 {[%clk 0:02:57]}
7. h3 {[%clk 0:02:51.1]} 7... O-O {[%clk 0:02:57]} 8. a3 {[%clk 0:02:51.6]} 8...
h6 {[%clk 0:02:55.8]} 9. Rb1 {[%clk 0:02:47.9]} 9... b6 {[%clk 0:02:22.7]} 10.
b4 {[%clk 0:02:43]} 10... Bb7 {[%clk 0:02:22.8]} 11. Nd5 {[%clk 0:02:37.2]}
11... Rc8 {[%clk 0:02:18.6]} 12. c3 {[%clk 0:02:32.3]} 12... cxb4 {[%clk
0:01:55.6]} 13. axb4 {[%clk 0:02:30.9]} 13... Nb8 {[%clk 0:01:55.9]} 14. Nxf6+
{[%clk 0:02:11.1]} 14... Bxf6 {[%clk 0:01:56.8]} 15. Qb3 {[%clk 0:02:01.1]}
15... a6 {[%clk 0:01:49.5]} 16. Be3 {[%clk 0:01:50.9]} 16... Nd7 {[%clk
0:01:41.7]} 17. Rfc1 {[%clk 0:01:45.3]} 17... Qc7 {[%clk 0:01:37.1]} 18. Ra1
{[%clk 0:01:40.1]} 18... a5 {[%clk 0:01:25.9]} 19. bxa5 {[%clk 0:01:28.6]} 19...
bxa5 {[%clk 0:01:25.6]} 20. Bd5 {[%clk 0:01:14]} 20... Bxd5 {[%clk 0:01:19.6]}
21. Qxd5 {[%clk 0:01:14.9]} 21... Ra8 {[%clk 0:01:19.2]} 22. Rcb1 {[%clk
0:01:09.9]} 22... Rfb8 {[%clk 0:00:58.4]} 23. Rxb8+ {[%clk 0:01:04.2]} 23...
Qxb8 {[%clk 0:00:58.2]} 24. Nd2 {[%clk 0:00:41.8]} 24... a4 {[%clk 0:00:23.5]}
25. Rb1 {[%clk 0:00:39.9]} 25... Qc8 {[%clk 0:00:21.2]} 26. Nc4 {[%clk
0:00:37.8]} 26... Be7 {[%clk 0:00:18.5]} 27. Ra1 {[%clk 0:00:21]} 27... a3
{[%clk 0:00:13.7]} 28. Rxa3 {[%clk 0:00:14.4]} 28... Rxa3 {[%clk 0:00:13.3]} 29.
Nxa3 {[%clk 0:00:15.3]} 29... Qxc3 {[%clk 0:00:13.6]} 30. Nc4 {[%clk 0:00:14]}
30... Qb4 {[%clk 0:00:09.1]} 31. Qa8+ {[%clk 0:00:13.2]} 31... Nf8 {[%clk
0:00:08.6]} 32. Kh2 {[%clk 0:00:10.3]} 32... Qb3 {[%clk 0:00:05.8]} 33. Qd5
{[%clk 0:00:09.8]} 33... Qb8 {[%clk 0:00:03.5]} 34. d4 {[%clk 0:00:08.9]} 34...
exd4 {[%clk 0:00:02.8]} 35. Bxd4 {[%clk 0:00:09.8]} 35... Ne6 {[%clk 0:00:03.1]}
36. Be3 {[%clk 0:00:09]} 36... Nc7 {[%clk 0:00:03.5]} 37. Qc6 {[%clk 0:00:08]}
37... d5 {[%clk 0:00:04]} 38. exd5 {[%clk 0:00:08]} 38... Nxd5+ {[%clk
0:00:04.2]} 39. g3 {[%clk 0:00:08]} 39... Nxe3 {[%clk 0:00:04.6]} 40. Nxe3
{[%clk 0:00:08.9]} 40... Qb2 {[%clk 0:00:04.1]} 41. Qf3 {[%clk 0:00:08.9]} 41...
Bc5 {[%clk 0:00:03.2]} 42. Qa8+ {[%clk 0:00:08.2]} 42... Bf8 {[%clk 0:00:03.2]}
43. Qf3 {[%clk 0:00:08.3]} 43... Bc5 {[%clk 0:00:02.7]} 44. Qa8+ {[%clk
0:00:08.2]} 44... Bf8 {[%clk 0:00:02.8]} 45. Qf3 {[%clk 0:00:08.6]} 45... Bc5
{[%clk 0:00:03]} 1/2-1/2

[Event "*** Titled Tuesday Blitz"]
[Site "Chess.com"]
[Date "2021.02.02"]
[Round "9"]
[White "Tsyhanchuk_Stanislav"]
[Black "korbul"]
[Result "1-0"]
[WhiteElo "2475"]
[BlackElo "2608"]
[TimeControl "180+1"]
[EndTime "11:46:46 PST"]
[Termination "Tsyhanchuk_Stanislav won by resignation"]

1. e4 {[%clk 0:03:00.9]} 1... c5 {[%clk 0:02:59.6]} 2. Nf3 {[%clk 0:03:00.6]}
2... Nc6 {[%clk 0:02:59.5]} 3. d4 {[%clk 0:03:01.3]} 3... cxd4 {[%clk
0:02:59.2]} 4. Nxd4 {[%clk 0:03:02.2]} 4... e6 {[%clk 0:02:59.4]} 5. Nc3 {[%clk
0:03:02.4]} 5... a6 {[%clk 0:02:58.8]} 6. Nxc6 {[%clk 0:03:02.8]} 6... bxc6
{[%clk 0:02:58.5]} 7. Bd3 {[%clk 0:03:02]} 7... d5 {[%clk 0:02:58.3]} 8. O-O
{[%clk 0:03:02.2]} 8... Nf6 {[%clk 0:02:57.9]} 9. Qf3 {[%clk 0:03:02]} 9... Be7
{[%clk 0:02:56.3]} 10. Re1 {[%clk 0:03:00.8]} 10... O-O {[%clk 0:02:55.2]} 11.
Qg3 {[%clk 0:03:01.5]} 11... a5 {[%clk 0:02:45]} 12. e5 {[%clk 0:03:01.3]} 12...
Ne8 {[%clk 0:02:44.4]} 13. f4 {[%clk 0:02:57.5]} 13... f5 {[%clk 0:02:41.9]} 14.
exf6 {[%clk 0:02:56.4]} 14... Nxf6 {[%clk 0:02:41.2]} 15. Bd2 {[%clk 0:02:48.1]}
15... a4 {[%clk 0:02:38.9]} 16. Kh1 {[%clk 0:02:45.2]} 16... a3 {[%clk
0:02:34.9]} 17. b3 {[%clk 0:02:43.9]} 17... Bd6 {[%clk 0:02:26.2]} 18. Qg5
{[%clk 0:02:37]} 18... Qc7 {[%clk 0:01:53.7]} 19. Re2 {[%clk 0:01:57.5]} 19...
Bd7 {[%clk 0:01:52.1]} 20. Rf1 {[%clk 0:01:54.6]} 20... Rae8 {[%clk 0:01:48]}
21. Na4 {[%clk 0:01:26.4]} 21... e5 {[%clk 0:01:32.4]} 22. fxe5 {[%clk
0:01:23.5]} 22... Rxe5 {[%clk 0:01:30.5]} 23. Rxe5 {[%clk 0:01:22.5]} 23... Bxe5
{[%clk 0:01:30.6]} 24. Nc5 {[%clk 0:01:11.5]} 24... Bc8 {[%clk 0:01:25.9]} 25.
Bb4 {[%clk 0:01:00.5]} 25... Rf7 {[%clk 0:01:22.5]} 26. Bxa3 {[%clk 0:00:46.7]}
26... Bxh2 {[%clk 0:00:59.8]} 27. Bb2 {[%clk 0:00:26.7]} 27... Bd6 {[%clk
0:00:45.3]} 28. Rxf6 {[%clk 0:00:15.8]} 28... Bxc5 {[%clk 0:00:36.7]} 29. Rxf7
{[%clk 0:00:15.3]} 29... Qxf7 {[%clk 0:00:36.2]} 30. Qd8+ {[%clk 0:00:08.7]}
30... Qf8 {[%clk 0:00:36.2]} 31. Qc7 {[%clk 0:00:09.2]} 31... Bd6 {[%clk
0:00:29.3]} 32. Qxc6 {[%clk 0:00:08.6]} 32... Be6 {[%clk 0:00:29.5]} 33. Be5
{[%clk 0:00:07]} 33... Qf2 {[%clk 0:00:17]} 34. Qxd6 {[%clk 0:00:07.3]} 34...
Qh4+ {[%clk 0:00:16.1]} 35. Kg1 {[%clk 0:00:06.2]} 35... Qe1+ {[%clk 0:00:15.5]}
36. Kh2 {[%clk 0:00:05.9]} 36... Qh4+ {[%clk 0:00:15.2]} 37. Kg1 {[%clk
0:00:06.8]} 37... Qe1+ {[%clk 0:00:15.3]} 38. Bf1 {[%clk 0:00:07.7]} 38... Qe3+
{[%clk 0:00:15]} 39. Kh1 {[%clk 0:00:07.8]} 39... Qh6+ {[%clk 0:00:12.6]} 40.
Bh2 {[%clk 0:00:07.9]} 40... Qf6 {[%clk 0:00:12]} 41. Qb8+ {[%clk 0:00:07.5]}
41... Kf7 {[%clk 0:00:12.1]} 42. Qf4 {[%clk 0:00:08.1]} 42... Qxf4 {[%clk
0:00:11.7]} 43. Bxf4 {[%clk 0:00:09]} 43... g5 {[%clk 0:00:11.8]} 44. Bd2 {[%clk
0:00:09.5]} 44... g4 {[%clk 0:00:11.5]} 45. a4 {[%clk 0:00:10.4]} 45... g3
{[%clk 0:00:11.3]} 46. Bd3 {[%clk 0:00:10.7]} 46... h5 {[%clk 0:00:10.8]} 47.
Bf4 {[%clk 0:00:10.4]} 47... h4 {[%clk 0:00:10.3]} 48. a5 {[%clk 0:00:11]} 48...
d4 {[%clk 0:00:10.5]} 49. a6 {[%clk 0:00:11.2]} 49... Bd5 {[%clk 0:00:10.8]} 50.
Bc4 {[%clk 0:00:11.8]} 50... h3 {[%clk 0:00:11.2]} 51. Bxd5+ {[%clk 0:00:11.3]}
51... Kf6 {[%clk 0:00:12.1]} 52. gxh3 {[%clk 0:00:12]} 52... Kf5 {[%clk
0:00:12.3]} 53. Bxg3 {[%clk 0:00:12.6]} 53... d3 {[%clk 0:00:12.9]} 54. cxd3
{[%clk 0:00:12.3]} 1-0